[Event "Late-Titled-Tuesday-Blitz-August-29-2023"]
[Site "Chess.com"]
[Date "2023.08.29"]
[Round "6"]
[White "slidingknight2775"]
[Black "Fuzesabonyilaci"]
[Result "1-0"]
[WhiteElo "2539"]
[BlackElo "2403"]
[TimeControl "180+1"]
[EndTime "15:04:42 PDT"]
[Termination "slidingknight2775 won on time"]

1. d4 {[%clk 0:03:00.9]} 1... Nf6 {[%clk 0:02:54.3]} 2. c4 {[%clk 0:03:00.8]}
2... g6 {[%clk 0:02:54.8]} 3. Nc3 {[%clk 0:03:01]} 3... d5 {[%clk 0:02:54.3]} 4.
Bg5 {[%clk 0:03:00.1]} 4... Bg7 {[%clk 0:02:41.9]} 5. Nf3 {[%clk 0:02:54.1]}
5... c6 {[%clk 0:02:38.9]} 6. e3 {[%clk 0:02:52.6]} 6... O-O {[%clk 0:02:38.8]}
7. Be2 {[%clk 0:02:51.2]} 7... h6 {[%clk 0:02:32.1]} 8. Bh4 {[%clk 0:02:50]}
8... Bf5 {[%clk 0:02:15.1]} 9. O-O {[%clk 0:02:49.1]} 9... Nbd7 {[%clk
0:02:02.7]} 10. Rc1 {[%clk 0:02:42.5]} 10... Re8 {[%clk 0:01:56.2]} 11. h3
{[%clk 0:02:37.1]} 11... Qa5 {[%clk 0:01:40.9]} 12. Qb3 {[%clk 0:02:15.8]} 12...
Rab8 {[%clk 0:01:30.9]} 13. Bg3 {[%clk 0:02:13.5]} 13... Rbc8 {[%clk 0:01:06.1]}
14. Qxb7 {[%clk 0:01:59.3]} 14... e5 {[%clk 0:00:59.2]} 15. Nxe5 {[%clk
0:01:35]} 15... Rb8 {[%clk 0:00:54]} 16. Qxc6 {[%clk 0:01:32.2]} 16... Rec8
{[%clk 0:00:52.9]} 17. Qa4 {[%clk 0:01:30.5]} 17... Qxa4 {[%clk 0:00:46.4]} 18.
Nxa4 {[%clk 0:01:31.4]} 18... Rb4 {[%clk 0:00:41]} 19. b3 {[%clk 0:01:24.6]}
19... Nxe5 {[%clk 0:00:38.4]} 20. Bxe5 {[%clk 0:01:24.4]} 20... dxc4 {[%clk
0:00:30.5]} 21. Rxc4 {[%clk 0:01:21.6]} 21... Rcxc4 {[%clk 0:00:21.8]} 22. Bxc4
{[%clk 0:01:22.5]} 22... Ne4 {[%clk 0:00:20.3]} 23. Bxg7 {[%clk 0:01:21.9]}
23... Nd2 {[%clk 0:00:18.7]} 24. Rc1 {[%clk 0:00:51.3]} 24... Kxg7 {[%clk
0:00:17.9]} 25. Nc5 {[%clk 0:00:51.3]} 25... Nb1 {[%clk 0:00:08.6]} 26. Nd3
{[%clk 0:00:44.3]} 26... Bxd3 {[%clk 0:00:07]} 27. Bxd3 {[%clk 0:00:44.5]} 27...
Na3 {[%clk 0:00:06.9]} 28. Rc5 {[%clk 0:00:40.6]} 1-0

[Event "Late-Titled-Tuesday-Blitz-August-29-2023"]
[Site "Chess.com"]
[Date "2023.08.29"]
[Round "6"]
[White "Sajkochess"]
[Black "Chemim21"]
[Result "1-0"]
[WhiteElo "2418"]
[BlackElo "2289"]
[TimeControl "180+1"]
[EndTime "15:04:45 PDT"]
[Termination "Sajkochess won by resignation"]

1. e4 {[%clk 0:03:00.9]} 1... e5 {[%clk 0:02:59]} 2. Nf3 {[%clk 0:03:00.2]} 2...
Nc6 {[%clk 0:02:59]} 3. Bc4 {[%clk 0:02:56.9]} 3... Bc5 {[%clk 0:02:58.3]} 4.
O-O {[%clk 0:02:53.5]} 4... d6 {[%clk 0:02:54.4]} 5. c3 {[%clk 0:02:52.7]} 5...
Bb6 {[%clk 0:02:53.8]} 6. d4 {[%clk 0:02:38.8]} 6... Qe7 {[%clk 0:02:53.4]} 7.
a4 {[%clk 0:02:31.6]} 7... a6 {[%clk 0:02:47]} 8. Bg5 {[%clk 0:02:11.5]} 8...
Nf6 {[%clk 0:02:35.9]} 9. Bd5 {[%clk 0:01:51.3]} 9... h6 {[%clk 0:02:23.1]} 10.
Bxf6 {[%clk 0:01:50.8]} 10... Qxf6 {[%clk 0:02:19.6]} 11. Na3 {[%clk 0:01:50.2]}
11... Ne7 {[%clk 0:02:04.3]} 12. Nc4 {[%clk 0:01:40.8]} 12... Nxd5 {[%clk
0:01:48.9]} 13. exd5 {[%clk 0:01:40.6]} 13... exd4 {[%clk 0:01:40.9]} 14. Nxb6
{[%clk 0:01:35.4]} 14... cxb6 {[%clk 0:01:40.2]} 15. Re1+ {[%clk 0:01:35.4]}
15... Kf8 {[%clk 0:01:40.5]} 16. Nxd4 {[%clk 0:01:32.3]} 16... g6 {[%clk
0:01:34.7]} 17. Qb3 {[%clk 0:01:26.8]} 17... Kg7 {[%clk 0:01:19]} 18. Qxb6
{[%clk 0:01:26.4]} 18... h5 {[%clk 0:01:12.6]} 19. Qc7 {[%clk 0:01:17.8]} 19...
Qd8 {[%clk 0:00:52.3]} 20. Qxd8 {[%clk 0:01:02.4]} 20... Rxd8 {[%clk 0:00:51.5]}
21. Re7 {[%clk 0:01:02.3]} 21... Rb8 {[%clk 0:00:49]} 22. Rae1 {[%clk
0:00:56.7]} 22... Kf8 {[%clk 0:00:41.7]} 23. f4 {[%clk 0:00:44.5]} 23... Bd7
{[%clk 0:00:41.6]} 24. a5 {[%clk 0:00:39.1]} 24... b6 {[%clk 0:00:40.1]} 25. Nc6
{[%clk 0:00:33.8]} 25... Bxc6 {[%clk 0:00:39.8]} 26. dxc6 {[%clk 0:00:34]} 26...
Rdc8 {[%clk 0:00:37.8]} 27. c7 {[%clk 0:00:28.9]} 27... Rb7 {[%clk 0:00:35]} 28.
Re8+ {[%clk 0:00:26.5]} 28... Rxe8 {[%clk 0:00:28.3]} 29. Rxe8+ {[%clk
0:00:27.4]} 1-0

[Event "Late-Titled-Tuesday-Blitz-August-29-2023"]
[Site "Chess.com"]
[Date "2023.08.29"]
[Round "6"]
[White "enriquetejedor"]
[Black "Zhigalko_Sergei"]
[Result "1-0"]
[WhiteElo "2730"]
[BlackElo "2918"]
[TimeControl "180+1"]
[EndTime "15:04:47 PDT"]
[Termination "enriquetejedor won on time"]

1. d4 {[%clk 0:02:59.7]} 1... Nf6 {[%clk 0:03:00]} 2. Nf3 {[%clk 0:02:58.4]}
2... e6 {[%clk 0:03:00.2]} 3. Bg5 {[%clk 0:02:57.7]} 3... h6 {[%clk 0:02:59]} 4.
Bxf6 {[%clk 0:02:57.1]} 4... Qxf6 {[%clk 0:02:59.9]} 5. Nbd2 {[%clk 0:02:56.4]}
5... d6 {[%clk 0:02:54]} 6. e4 {[%clk 0:02:54.1]} 6... e5 {[%clk 0:02:53.2]} 7.
c3 {[%clk 0:02:51.3]} 7... Nd7 {[%clk 0:02:50.1]} 8. Bc4 {[%clk 0:02:44.5]} 8...
c6 {[%clk 0:02:33.1]} 9. a4 {[%clk 0:02:34.8]} 9... g6 {[%clk 0:02:25.4]} 10.
O-O {[%clk 0:02:33.9]} 10... h5 {[%clk 0:02:24.9]} 11. a5 {[%clk 0:02:26.5]}
11... Bh6 {[%clk 0:02:24]} 12. Bd3 {[%clk 0:02:21.4]} 12... O-O {[%clk
0:02:23.2]} 13. Nc4 {[%clk 0:02:10.7]} 13... Rb8 {[%clk 0:02:10.4]} 14. Ne3
{[%clk 0:02:09.2]} 14... Re8 {[%clk 0:02:04.4]} 15. Re1 {[%clk 0:02:05.4]} 15...
Nf8 {[%clk 0:02:01.1]} 16. d5 {[%clk 0:02:01.2]} 16... Bg4 {[%clk 0:01:36.7]}
17. h3 {[%clk 0:01:56.1]} 17... Bxf3 {[%clk 0:01:34.4]} 18. Qxf3 {[%clk
0:01:57]} 18... Qxf3 {[%clk 0:01:33.1]} 19. gxf3 {[%clk 0:01:57.9]} 19... Bxe3
{[%clk 0:01:22.3]} 20. fxe3 {[%clk 0:01:58.8]} 20... cxd5 {[%clk 0:01:11]} 21.
exd5 {[%clk 0:01:58.5]} 21... Rec8 {[%clk 0:01:11.4]} 22. a6 {[%clk 0:01:52.9]}
22... b6 {[%clk 0:00:54.5]} 23. Bb5 {[%clk 0:01:52.4]} 23... Rc7 {[%clk
0:00:49.5]} 24. Ra4 {[%clk 0:01:47.5]} 24... Kg7 {[%clk 0:00:42.4]} 25. h4
{[%clk 0:01:45]} 25... Nh7 {[%clk 0:00:40.5]} 26. Bc6 {[%clk 0:01:43.1]} 26...
f5 {[%clk 0:00:19.2]} 27. Kf2 {[%clk 0:01:41]} 27... Kf6 {[%clk 0:00:19]} 28.
Rg1 {[%clk 0:01:30.1]} 28... Rg8 {[%clk 0:00:14.7]} 29. Raa1 {[%clk 0:01:28.1]}
29... g5 {[%clk 0:00:13.7]} 30. hxg5+ {[%clk 0:01:27.6]} 30... Nxg5 {[%clk
0:00:14.6]} 31. Rh1 {[%clk 0:01:27.5]} 31... Rcg7 {[%clk 0:00:06.9]} 32. Rxh5
{[%clk 0:00:54.1]} 32... Nh3+ {[%clk 0:00:02.9]} 33. Ke2 {[%clk 0:00:54.6]}
33... Rg2+ {[%clk 0:00:01.6]} 34. Kd3 {[%clk 0:00:54.9]} 1-0

[Event "Late-Titled-Tuesday-Blitz-August-29-2023"]
[Site "Chess.com"]
[Date "2023.08.29"]
[Round "6"]
[White "nassimzrikem"]
[Black "viktorgen2021"]
[Result "0-1"]
[WhiteElo "2155"]
[BlackElo "2437"]
[TimeControl "180+1"]
[EndTime "15:04:47 PDT"]
[Termination "viktorgen2021 won by resignation"]

1. d4 {[%clk 0:03:00]} 1... Nf6 {[%clk 0:02:49.4]} 2. Nf3 {[%clk 0:02:57.4]}
2... g6 {[%clk 0:02:49]} 3. Bg5 {[%clk 0:02:55.5]} 3... Bg7 {[%clk 0:02:48.5]}
4. Nbd2 {[%clk 0:02:53.8]} 4... d6 {[%clk 0:02:47.8]} 5. e4 {[%clk 0:02:53.4]}
5... O-O {[%clk 0:02:45.8]} 6. c3 {[%clk 0:02:53.6]} 6... c5 {[%clk 0:02:43.5]}
7. dxc5 {[%clk 0:02:52.3]} 7... dxc5 {[%clk 0:02:41.9]} 8. Bc4 {[%clk
0:02:52.3]} 8... Nc6 {[%clk 0:02:40.8]} 9. Qe2 {[%clk 0:02:51.8]} 9... a6 {[%clk
0:02:39.4]} 10. Bxf6 {[%clk 0:02:11.3]} 10... exf6 {[%clk 0:02:38.2]} 11. O-O
{[%clk 0:02:11.3]} 11... b5 {[%clk 0:02:37]} 12. Bd5 {[%clk 0:02:11.1]} 12...
Bb7 {[%clk 0:02:36.3]} 13. Rad1 {[%clk 0:02:07.2]} 13... Qc7 {[%clk 0:02:35.6]}
14. a4 {[%clk 0:02:04.3]} 14... Ne7 {[%clk 0:02:33.1]} 15. Bxb7 {[%clk 0:01:43]}
15... Qxb7 {[%clk 0:02:30.5]} 16. axb5 {[%clk 0:01:41.8]} 16... axb5 {[%clk
0:02:31.4]} 17. Nh4 {[%clk 0:01:41.3]} 17... Nc6 {[%clk 0:02:29.6]} 18. f4
{[%clk 0:01:41.6]} 18... Rfe8 {[%clk 0:02:28]} 19. f5 {[%clk 0:01:40.6]} 19...
Ne5 {[%clk 0:02:27.1]} 20. Ndf3 {[%clk 0:01:19.6]} 20... c4 {[%clk 0:02:20.8]}
21. Rd5 {[%clk 0:01:12.8]} 21... Nd3 {[%clk 0:02:19.7]} 22. Nd4 {[%clk
0:01:05.8]} 22... g5 {[%clk 0:02:07]} 23. Nhf3 {[%clk 0:00:51.5]} 23... Nf4
{[%clk 0:02:05.6]} 24. Qc2 {[%clk 0:00:20.3]} 24... Nxd5 {[%clk 0:02:02]} 25.
exd5 {[%clk 0:00:21.2]} 25... Qxd5 {[%clk 0:02:01.8]} 26. Rd1 {[%clk 0:00:21.7]}
26... Qc5 {[%clk 0:01:55.9]} 27. Kh1 {[%clk 0:00:20.4]} 27... b4 {[%clk
0:01:55.8]} 28. cxb4 {[%clk 0:00:18.5]} 28... Qxb4 {[%clk 0:01:55.3]} 29. Nc6
{[%clk 0:00:17.1]} 29... Qc5 {[%clk 0:01:55.4]} 30. Nfd4 {[%clk 0:00:16.7]}
30... Rac8 {[%clk 0:01:50.2]} 31. b4 {[%clk 0:00:16.5]} 31... Qd5 {[%clk
0:01:46.3]} 32. b5 {[%clk 0:00:16.7]} 32... Bf8 {[%clk 0:01:44.2]} 33. Rc1
{[%clk 0:00:15.8]} 33... Bc5 {[%clk 0:01:38.8]} 34. Nf3 {[%clk 0:00:12.4]} 34...
Be3 {[%clk 0:01:30.1]} 35. Qxc4 {[%clk 0:00:10.3]} 35... Qxf5 {[%clk 0:01:30.1]}
36. Rd1 {[%clk 0:00:09]} 36... Bb6 {[%clk 0:01:28.8]} 37. h3 {[%clk 0:00:08.2]}
37... Re4 {[%clk 0:01:24.2]} 38. Qb3 {[%clk 0:00:08]} 38... Rce8 {[%clk
0:01:21.9]} 39. Nfd4 {[%clk 0:00:06.8]} 39... Qf4 {[%clk 0:01:19.2]} 40. Qc3
{[%clk 0:00:05.5]} 40... Re3 {[%clk 0:01:17.4]} 41. Qb2 {[%clk 0:00:05.3]} 41...
Re1+ {[%clk 0:01:17.3]} 0-1

[Event "Late-Titled-Tuesday-Blitz-August-29-2023"]
[Site "Chess.com"]
[Date "2023.08.29"]
[Round "6"]
[White "andriipalchuk"]
[Black "Alphafischer2019"]
[Result "0-1"]
[WhiteElo "2669"]
[BlackElo "2532"]
[TimeControl "180+1"]
[EndTime "15:04:55 PDT"]
[Termination "Alphafischer2019 won on time"]

1. Nf3 {[%clk 0:02:50.1]} 1... c5 {[%clk 0:02:55.8]} 2. e4 {[%clk 0:02:49.5]}
2... Nc6 {[%clk 0:02:53.7]} 3. Bb5 {[%clk 0:02:49.1]} 3... g6 {[%clk 0:02:53.3]}
4. Bxc6 {[%clk 0:02:48.4]} 4... dxc6 {[%clk 0:02:54.2]} 5. d3 {[%clk 0:02:49]}
5... Bg7 {[%clk 0:02:54.6]} 6. h3 {[%clk 0:02:49.6]} 6... e5 {[%clk 0:02:53.2]}
7. O-O {[%clk 0:02:41.3]} 7... f6 {[%clk 0:02:52]} 8. Be3 {[%clk 0:02:39.8]}
8... b6 {[%clk 0:02:51.4]} 9. a3 {[%clk 0:02:40.4]} 9... Nh6 {[%clk 0:02:40.9]}
10. b4 {[%clk 0:02:40.2]} 10... cxb4 {[%clk 0:02:40.9]} 11. axb4 {[%clk
0:02:41.1]} 11... O-O {[%clk 0:02:40]} 12. Nbd2 {[%clk 0:02:38.9]} 12... Nf7
{[%clk 0:02:39.7]} 13. Nc4 {[%clk 0:02:38.1]} 13... Be6 {[%clk 0:02:40]} 14. Qe2
{[%clk 0:02:34.5]} 14... Qc7 {[%clk 0:02:37.8]} 15. Nfd2 {[%clk 0:02:32.5]}
15... Rfd8 {[%clk 0:02:36.9]} 16. Ra6 {[%clk 0:02:30]} 16... Rab8 {[%clk
0:02:32.1]} 17. Rfa1 {[%clk 0:02:29.1]} 17... Rb7 {[%clk 0:02:32.7]} 18. Qf1
{[%clk 0:01:55.2]} 18... Qe7 {[%clk 0:02:24.8]} 19. f4 {[%clk 0:01:52.7]} 19...
exf4 {[%clk 0:02:23.4]} 20. Qxf4 {[%clk 0:01:52]} 20... f5 {[%clk 0:02:22]} 21.
exf5 {[%clk 0:01:22]} 21... Bxf5 {[%clk 0:02:16.7]} 22. Rf1 {[%clk 0:01:16.3]}
22... b5 {[%clk 0:02:14.6]} 23. Na5 {[%clk 0:01:10.6]} 23... Bh6 {[%clk
0:02:14.5]} 24. Qxh6 {[%clk 0:00:49.3]} 24... Nxh6 {[%clk 0:02:12.7]} 25. Bxh6
{[%clk 0:00:50.2]} 25... Rb6 {[%clk 0:02:11.8]} 26. Rxb6 {[%clk 0:00:48]} 26...
axb6 {[%clk 0:02:10.8]} 27. Nxc6 {[%clk 0:00:48.7]} 27... Qh4 {[%clk 0:02:09.2]}
28. Be3 {[%clk 0:00:22]} 28... Re8 {[%clk 0:02:08.6]} 29. Nf3 {[%clk 0:00:22.1]}
29... Qf6 {[%clk 0:02:07.2]} 30. Nce5 {[%clk 0:00:21.3]} 30... Qd6 {[%clk
0:01:57.1]} 31. Bd4 {[%clk 0:00:21.1]} 31... Qxb4 {[%clk 0:01:55]} 32. g4 {[%clk
0:00:21.1]} 32... Be6 {[%clk 0:01:54.4]} 33. c3 {[%clk 0:00:19.2]} 33... Qd6
{[%clk 0:01:53.6]} 34. Ng5 {[%clk 0:00:16.5]} 34... h6 {[%clk 0:01:53.8]} 35.
Ne4 {[%clk 0:00:16.8]} 35... Qd8 {[%clk 0:01:45]} 36. Nxg6 {[%clk 0:00:12.1]}
36... Kh7 {[%clk 0:01:39.1]} 37. Nf4 {[%clk 0:00:12.3]} 37... Rf8 {[%clk
0:01:33.3]} 38. Nxe6 {[%clk 0:00:10]} 38... Rxf1+ {[%clk 0:01:34.2]} 39. Kxf1
{[%clk 0:00:10.9]} 39... Qa8 {[%clk 0:01:35.1]} 40. Nf4 {[%clk 0:00:09.3]} 40...
Qa1+ {[%clk 0:01:32.5]} 41. Kf2 {[%clk 0:00:09.8]} 41... b4 {[%clk 0:01:33.1]}
42. Nf6+ {[%clk 0:00:08.8]} 42... Kg7 {[%clk 0:01:33.7]} 43. N6d5+ {[%clk
0:00:07.2]} 43... Kf7 {[%clk 0:01:32.7]} 44. Nxb4 {[%clk 0:00:08.1]} 44... Qb2+
{[%clk 0:01:32.3]} 45. Kf3 {[%clk 0:00:08]} 45... Qc1 {[%clk 0:01:31.7]} 46.
Nbd5 {[%clk 0:00:07.8]} 46... Qf1+ {[%clk 0:01:29.4]} 47. Ke3 {[%clk 0:00:07.1]}
47... b5 {[%clk 0:01:29.7]} 48. Nb4 {[%clk 0:00:01.1]} 48... Qg1+ {[%clk
0:01:29.5]} 49. Ke4 {[%clk 0:00:01.4]} 49... Qh1+ {[%clk 0:01:29.4]} 50. Ke5
{[%clk 0:00:01]} 50... Qa1 {[%clk 0:01:28.8]} 0-1

[Event "Late-Titled-Tuesday-Blitz-August-29-2023"]
[Site "Chess.com"]
[Date "2023.08.29"]
[Round "6"]
[White "szachmistrz2500"]
[Black "AsaHoffmann"]
[Result "1/2-1/2"]
[WhiteElo "2485"]
[BlackElo "2368"]
[TimeControl "180+1"]
[EndTime "15:04:55 PDT"]
[Termination "Game drawn by repetition"]

1. Nf3 {[%clk 0:03:00.9]} 1... d6 {[%clk 0:02:57.2]} 2. g3 {[%clk 0:03:00.6]}
2... c6 {[%clk 0:02:56.9]} 3. Bg2 {[%clk 0:03:01]} 3... e5 {[%clk 0:02:56.6]} 4.
d3 {[%clk 0:03:00.3]} 4... Nf6 {[%clk 0:02:56.3]} 5. O-O {[%clk 0:02:59.5]} 5...
Be7 {[%clk 0:02:56.2]} 6. e4 {[%clk 0:02:59.7]} 6... h6 {[%clk 0:02:54.9]} 7. c3
{[%clk 0:02:59.5]} 7... Be6 {[%clk 0:02:54.3]} 8. Re1 {[%clk 0:02:59.7]} 8...
Qd7 {[%clk 0:02:53.6]} 9. d4 {[%clk 0:02:59.4]} 9... Qc7 {[%clk 0:02:49]} 10.
Nbd2 {[%clk 0:02:49.8]} 10... Nbd7 {[%clk 0:02:48.3]} 11. Nf1 {[%clk 0:02:48.1]}
11... O-O {[%clk 0:02:42.2]} 12. h3 {[%clk 0:02:45.4]} 12... Nb6 {[%clk
0:02:29.4]} 13. g4 {[%clk 0:02:44.3]} 13... Nh7 {[%clk 0:02:26.6]} 14. Ng3
{[%clk 0:02:39.1]} 14... Rfe8 {[%clk 0:02:23.5]} 15. b3 {[%clk 0:02:38]} 15...
a5 {[%clk 0:02:22.6]} 16. a4 {[%clk 0:02:26.9]} 16... Rad8 {[%clk 0:02:18.9]}
17. c4 {[%clk 0:02:23.3]} 17... exd4 {[%clk 0:02:15.5]} 18. Nxd4 {[%clk
0:02:22.6]} 18... Bf6 {[%clk 0:02:14.8]} 19. Ra2 {[%clk 0:02:17.6]} 19... Bc8
{[%clk 0:02:13.2]} 20. Bf4 {[%clk 0:02:11.5]} 20... Ng5 {[%clk 0:02:09.7]} 21.
c5 {[%clk 0:02:09.3]} 21... Na8 {[%clk 0:01:55.5]} 22. cxd6 {[%clk 0:02:05.9]}
22... Rxd6 {[%clk 0:01:47.9]} 23. e5 {[%clk 0:01:58]} 23... Rxd4 {[%clk
0:01:38]} 24. Qxd4 {[%clk 0:01:51.1]} 24... Be7 {[%clk 0:01:37]} 25. e6 {[%clk
0:01:45.3]} 25... Qb6 {[%clk 0:01:31.7]} 26. exf7+ {[%clk 0:01:44.1]} 26... Nxf7
{[%clk 0:01:27.5]} 27. Qc4 {[%clk 0:01:39.1]} 27... Bd7 {[%clk 0:01:16.3]} 28.
Rae2 {[%clk 0:01:38]} 28... Qd8 {[%clk 0:01:10.7]} 29. Be4 {[%clk 0:01:32.1]}
29... Nb6 {[%clk 0:00:57.4]} 30. Qc2 {[%clk 0:01:30.2]} 30... Nd5 {[%clk
0:00:52.5]} 31. Bxd5 {[%clk 0:01:26.3]} 31... cxd5 {[%clk 0:00:52.1]} 32. Qg6
{[%clk 0:01:25.5]} 32... Bb4 {[%clk 0:00:49.6]} 33. Rxe8+ {[%clk 0:01:17.1]}
33... Bxe8 {[%clk 0:00:49.4]} 34. Bxh6 {[%clk 0:01:14.7]} 34... Bc3 {[%clk
0:00:40.1]} 35. Nf5 {[%clk 0:01:12.1]} 35... Nd6 {[%clk 0:00:27.1]} 36. Qe6+
{[%clk 0:01:03.7]} 36... Bf7 {[%clk 0:00:23.2]} 37. Ne7+ {[%clk 0:01:03.1]}
37... Kf8 {[%clk 0:00:20.6]} 38. Ng6+ {[%clk 0:00:52]} 38... Kg8 {[%clk
0:00:20.5]} 39. Ne7+ {[%clk 0:00:41.3]} 39... Kf8 {[%clk 0:00:20.2]} 40. Ng6+
{[%clk 0:00:33.3]} 40... Kg8 {[%clk 0:00:20.1]} 41. Ne7+ {[%clk 0:00:33]}
1/2-1/2

[Event "Late-Titled-Tuesday-Blitz-August-29-2023"]
[Site "Chess.com"]
[Date "2023.08.29"]
[Round "6"]
[White "cassoulet"]
[Black "NMJeevanK"]
[Result "1-0"]
[WhiteElo "2734"]
[BlackElo "2524"]
[TimeControl "180+1"]
[EndTime "15:04:57 PDT"]
[Termination "cassoulet won on time"]

1. e4 {[%clk 0:02:56.2]} 1... g6 {[%clk 0:02:59.9]} 2. Nc3 {[%clk 0:02:55.6]}
2... Bg7 {[%clk 0:03:00]} 3. h4 {[%clk 0:02:56.3]} 3... d6 {[%clk 0:02:51]} 4.
d4 {[%clk 0:02:55.1]} 4... Nf6 {[%clk 0:02:50]} 5. Be2 {[%clk 0:02:54.1]} 5...
c5 {[%clk 0:02:49.1]} 6. dxc5 {[%clk 0:02:51.6]} 6... Qa5 {[%clk 0:02:49.7]} 7.
Bd2 {[%clk 0:02:43.7]} 7... Qxc5 {[%clk 0:02:45.6]} 8. h5 {[%clk 0:02:41.4]}
8... gxh5 {[%clk 0:02:40.6]} 9. Bxh5 {[%clk 0:02:37]} 9... Nc6 {[%clk
0:02:26.5]} 10. Bf3 {[%clk 0:02:35.3]} 10... Be6 {[%clk 0:02:24.4]} 11. Nge2
{[%clk 0:02:32.3]} 11... Ne5 {[%clk 0:02:19.2]} 12. Be3 {[%clk 0:02:25.6]} 12...
Nxf3+ {[%clk 0:02:13.2]} 13. gxf3 {[%clk 0:02:24.9]} 13... Qb4 {[%clk
0:02:10.8]} 14. Rg1 {[%clk 0:02:24.3]} 14... Rg8 {[%clk 0:02:04.2]} 15. Qd4
{[%clk 0:02:08]} 15... Qa5 {[%clk 0:01:50.3]} 16. Rg5 {[%clk 0:02:00]} 16... Qc7
{[%clk 0:01:45.3]} 17. O-O-O {[%clk 0:01:55]} 17... a6 {[%clk 0:01:38.4]} 18.
Rdg1 {[%clk 0:01:53.6]} 18... Kf8 {[%clk 0:01:22.9]} 19. Rxg7 {[%clk 0:01:49.9]}
19... Rxg7 {[%clk 0:01:23.8]} 20. Bh6 {[%clk 0:01:49.6]} 20... Bg4 {[%clk
0:01:16]} 21. Bxg7+ {[%clk 0:01:44.1]} 21... Kxg7 {[%clk 0:01:12.9]} 22. Rxg4+
{[%clk 0:01:44]} 22... Kh8 {[%clk 0:01:09.5]} 23. Nd5 {[%clk 0:01:42.2]} 23...
Qa5 {[%clk 0:01:06.4]} 24. Nec3 {[%clk 0:01:35.4]} 24... e5 {[%clk 0:01:02]} 25.
Qd2 {[%clk 0:01:34.7]} 25... Nxg4 {[%clk 0:01:00.9]} 26. fxg4 {[%clk 0:01:35.6]}
26... Rg8 {[%clk 0:00:55]} 27. Nf6 {[%clk 0:01:34.2]} 27... Rg6 {[%clk
0:00:52.5]} 28. Qxd6 {[%clk 0:01:33.9]} 28... Kg7 {[%clk 0:00:37.8]} 29. Nh5+
{[%clk 0:01:33.2]} 29... Kh6 {[%clk 0:00:33.7]} 30. Qd2+ {[%clk 0:01:23.4]}
30... Rg5 {[%clk 0:00:31.2]} 31. Ng3 {[%clk 0:01:09.3]} 31... Kg6 {[%clk
0:00:21.1]} 32. Qd6+ {[%clk 0:01:06.6]} 32... Kg7 {[%clk 0:00:14.4]} 33. Nf5+
{[%clk 0:01:05.4]} 33... Rxf5 {[%clk 0:00:06]} 34. gxf5 {[%clk 0:01:06.3]} 34...
f6 {[%clk 0:00:05]} 35. Qe7+ {[%clk 0:01:04.7]} 35... Kg8 {[%clk 0:00:05]} 36.
Qe6+ {[%clk 0:01:01.6]} 36... Kg7 {[%clk 0:00:04.2]} 37. Qe7+ {[%clk 0:01:01.9]}
37... Kg8 {[%clk 0:00:04.5]} 38. Qxf6 {[%clk 0:01:02.5]} 38... Qc5 {[%clk
0:00:04.3]} 39. Qd8+ {[%clk 0:00:57.7]} 39... Kg7 {[%clk 0:00:03]} 40. Qg5+
{[%clk 0:00:55.8]} 40... Kf7 {[%clk 0:00:01.9]} 41. f6 {[%clk 0:00:54.6]} 41...
Qxf2 {[%clk 0:00:01.7]} 42. Qg7+ {[%clk 0:00:54.5]} 1-0

[Event "Late-Titled-Tuesday-Blitz-August-29-2023"]
[Site "Chess.com"]
[Date "2023.08.29"]
[Round "6"]
[White "Colombiano07"]
[Black "jeetjain"]
[Result "1-0"]
[WhiteElo "2454"]
[BlackElo "2595"]
[TimeControl "180+1"]
[EndTime "15:04:58 PDT"]
[Termination "Colombiano07 won by resignation"]

1. d4 {[%clk 0:03:00.9]} 1... c5 {[%clk 0:02:59.7]} 2. d5 {[%clk 0:03:00.5]}
2... e5 {[%clk 0:02:59.9]} 3. Nc3 {[%clk 0:02:59.6]} 3... d6 {[%clk 0:03:00.5]}
4. e4 {[%clk 0:03:00.2]} 4... Be7 {[%clk 0:03:00.7]} 5. Nf3 {[%clk 0:02:59.4]}
5... Bg4 {[%clk 0:03:00.4]} 6. Bb5+ {[%clk 0:02:57.2]} 6... Kf8 {[%clk
0:02:59.8]} 7. O-O {[%clk 0:02:56.9]} 7... a6 {[%clk 0:02:57.9]} 8. Be2 {[%clk
0:02:56.5]} 8... b5 {[%clk 0:02:56.6]} 9. a4 {[%clk 0:02:54.9]} 9... b4 {[%clk
0:02:56.3]} 10. Nb1 {[%clk 0:02:55.6]} 10... Bxf3 {[%clk 0:02:56.6]} 11. Bxf3
{[%clk 0:02:54.8]} 11... Bg5 {[%clk 0:02:56.6]} 12. Nd2 {[%clk 0:02:55.4]} 12...
g6 {[%clk 0:02:54.3]} 13. g3 {[%clk 0:02:54.5]} 13... h5 {[%clk 0:02:54]} 14. h4
{[%clk 0:02:53.9]} 14... Bh6 {[%clk 0:02:54.3]} 15. Bg2 {[%clk 0:02:53.2]} 15...
Nd7 {[%clk 0:02:47.5]} 16. Nc4 {[%clk 0:02:50]} 16... Bxc1 {[%clk 0:02:47.3]}
17. Qxc1 {[%clk 0:02:50.9]} 17... Nb6 {[%clk 0:02:47.3]} 18. Nxb6 {[%clk
0:02:49.2]} 18... Qxb6 {[%clk 0:02:48.2]} 19. Kh2 {[%clk 0:02:41.8]} 19... Nh6
{[%clk 0:02:46.3]} 20. Bf3 {[%clk 0:02:41.1]} 20... Kg7 {[%clk 0:02:43.1]} 21.
b3 {[%clk 0:02:39.3]} 21... Raf8 {[%clk 0:02:41]} 22. Qe3 {[%clk 0:02:35.2]}
22... f5 {[%clk 0:02:39.4]} 23. c4 {[%clk 0:02:31.7]} 23... Rf6 {[%clk
0:02:15.1]} 24. Be2 {[%clk 0:02:26]} 24... f4 {[%clk 0:02:10.6]} 25. Qd3 {[%clk
0:02:22.3]} 25... Rhf8 {[%clk 0:02:10.3]} 26. Bf3 {[%clk 0:01:56.4]} 26... Qc7
{[%clk 0:02:02.9]} 27. Kg2 {[%clk 0:01:52.7]} 27... Kh7 {[%clk 0:01:57]} 28.
Rae1 {[%clk 0:01:49]} 28... Qf7 {[%clk 0:01:51.1]} 29. Qd1 {[%clk 0:01:46]}
29... Kh8 {[%clk 0:01:46.7]} 30. Qe2 {[%clk 0:01:44]} 30... Qg7 {[%clk 0:01:44]}
31. Qd1 {[%clk 0:01:41.7]} 31... g5 {[%clk 0:01:41.3]} 32. hxg5 {[%clk
0:01:38.9]} 32... Qxg5 {[%clk 0:01:40.7]} 33. Bxh5 {[%clk 0:01:36.7]} 33... fxg3
{[%clk 0:01:39.2]} 34. fxg3 {[%clk 0:01:34]} 34... Rxf1 {[%clk 0:01:38.2]} 35.
Rxf1 {[%clk 0:01:33.6]} 35... Rxf1 {[%clk 0:01:38.8]} 36. Kxf1 {[%clk 0:01:32]}
36... Qxg3 {[%clk 0:01:38.4]} 37. Qf3 {[%clk 0:01:29.1]} 37... Qxf3+ {[%clk
0:01:30.7]} 38. Bxf3 {[%clk 0:01:30]} 38... a5 {[%clk 0:01:31.1]} 39. Kg2 {[%clk
0:01:26.5]} 39... Kg7 {[%clk 0:01:17.3]} 40. Kg3 {[%clk 0:01:25.3]} 40... Kf6
{[%clk 0:01:16]} 41. Bg4 {[%clk 0:01:23.2]} 41... Nf7 {[%clk 0:01:11.8]} 42. Bf5
{[%clk 0:01:20]} 42... Kg5 {[%clk 0:01:07.8]} 43. Bg4 {[%clk 0:01:18]} 43... Nh8
{[%clk 0:01:07]} 44. Bf5 {[%clk 0:01:15.6]} 44... Kh5 {[%clk 0:01:05.4]} 45. Bd7
{[%clk 0:01:12.6]} 45... Ng6 {[%clk 0:01:05.2]} 46. Be8 {[%clk 0:01:10.7]} 46...
Kg5 {[%clk 0:01:04.1]} 47. Bxg6 {[%clk 0:01:10.8]} 47... Kxg6 {[%clk 0:01:05]}
48. Kg4 {[%clk 0:01:11.1]} 1-0